{"text_format":"1","workbook":"xlsx","n_sheets":2,"sheets":["ورقة2","ورقة3"],"not_rendered":{"charts":0,"images":0,"macros":0,"external_links":0,"defined_names":0,"comments":0,"pivot_tables":0},"unopened":[],"bounds":{"document_bytes":16777216,"sheet_cells":100000,"rows_first":2000,"rows_last":500,"rows_between":2000,"halvings":0,"cell_chars":16384,"cell_head_chars":4096},"cells_cut":0,"cells_raw":0,"read":"whole","date_system":"1900"}

{"sheet":"ورقة2","index":0,"n_rows":117,"n_cols":9,"rows_kept":117,"cut":false,"hidden":false,"merged":[[0,0,1,14],[2,8,3,14],[4,8,5,14],[6,8,7,14],[8,8,9,14]]}
[" الدرس الثانى (شرح الدالة IF)"]
[]
["م","الاسم","النوع",null,null,null,"كود النوع",null,"تمرين 1"]
[1,"A1",{"$f":"IF(G4=1,\"ولد\",IF(G4=2,\"بنت\",\"\"))","v":"ولد"},null,null,null,1]
[2,"A2",{"$f":"IF(G5=1,\"ولد\",IF(G5=2,\"بنت\",\"\"))","v":"ولد"},null,null,null,1,null,"لديك مجموع مدرسين عددهم 100 مدرس  كود لغة عربية 1   كود رياضيات 2 كودالدراسات 3"]
[3,"A3","ولد",null,null,null,1]
[4,"A4","ولد",null,null,null,1,null,"المطلوب عمل جدول مثل الموضح ولكن فى كود النوع نفذ المطلوب وحاول لبيان نوعية المدرسين"]
[5,"A5","ولد",null,null,null,1]
[6,"A6","ولد",null,null,null,1,null,"الخلية المكتوب فيها النوع بدلها الى التخصص وبدل كود النوع الى كود التخصص"]
[7,"A7","ولد",null,null,null,1]
[8,"A8","ولد",null,null,null,1]
[9,"A9","ولد",null,null,null,1]
[10,"A10","ولد",null,null,null,1]
[11,"A11","ولد",null,null,null,1]
[12,"A12","ولد",null,null,null,1]
[13,"A13","ولد",null,null,null,1]
[14,"A14","ولد",null,null,null,1]
[15,"A15","ولد",null,null,null,1]
[16,"A16","ولد",null,null,null,1]
[17,"A17","ولد",null,null,null,1]
[18,"A18","ولد",null,null,null,1]
[19,"A19","ولد",null,null,null,1]
[20,"A20","ولد",null,null,null,1]
[21,"A21","ولد",null,null,null,1]
[22,"A22","ولد",null,null,null,1]
[23,"A23","ولد",null,null,null,1]
[24,"A24","ولد",null,null,null,1]
[25,"A25","ولد",null,null,null,1]
[26,"A26","ولد",null,null,null,1]
[27,"A27","ولد",null,null,null,1]
[28,"A28","ولد",null,null,null,1]
[29,"A29","ولد",null,null,null,1]
[30,"A30","ولد",null,null,null,1]
[31,"A31","ولد",null,null,null,1]
[32,"A32","ولد",null,null,null,1]
[33,"A33","ولد",null,null,null,1]
[34,"A34","ولد",null,null,null,1]
[35,"A35","ولد",null,null,null,1]
[36,"A36","ولد",null,null,null,1]
[37,"A37","ولد",null,null,null,1]
[38,"A38","ولد",null,null,null,1]
[39,"A39","ولد",null,null,null,1]
[40,"A40","ولد",null,null,null,1]
[41,"A41","ولد",null,null,null,1]
[42,"A42","ولد",null,null,null,1]
[43,"A43","ولد",null,null,null,1]
[44,"A44","ولد",null,null,null,1]
[45,"A45","ولد",null,null,null,1]
[46,"A46","ولد",null,null,null,1]
[47,"A47","ولد",null,null,null,1]
[48,"A48","ولد",null,null,null,1]
[49,"A49","ولد",null,null,null,1]
[50,"A50","ولد",null,null,null,1]
[51,"A51","ولد",null,null,null,1]
[52,"A52","ولد",null,null,null,1]
[53,"A53","ولد",null,null,null,1]
[54,"A54","ولد",null,null,null,1]
[55,"A55","ولد",null,null,null,1]
[56,"A56","ولد",null,null,null,1]
[57,"A57","ولد",null,null,null,1]
[58,"A58","ولد",null,null,null,1]
[59,"A59","ولد",null,null,null,1]
[60,"A60","ولد",null,null,null,1]
[61,"A61","بنت",null,null,null,2]
[62,"A62","بنت",null,null,null,2]
[63,"A63","بنت",null,null,null,2]
[64,"A64","بنت",null,null,null,2]
[65,"A65","بنت",null,null,null,2]
[66,"A66",{"$f":"IF(G69=1,\"ولد\",IF(G69=2,\"بنت\",\"\"))","v":"بنت"},null,null,null,2]
[67,"A67","بنت",null,null,null,2]
[68,"A68","بنت",null,null,null,2]
[69,"A69","بنت",null,null,null,2]
[70,"A70","بنت",null,null,null,2]
[71,"A71","بنت",null,null,null,2]
[72,"A72","بنت",null,null,null,2]
[73,"A73","بنت",null,null,null,2]
[74,"A74","بنت",null,null,null,2]
[75,"A75","بنت",null,null,null,2]
[76,"A76","بنت",null,null,null,2]
[77,"A77","بنت",null,null,null,2]
[78,"A78","بنت",null,null,null,2]
[79,"A79","بنت",null,null,null,2]
[80,"A80","بنت",null,null,null,2]
[81,"A81","بنت",null,null,null,2]
[82,"A82","بنت",null,null,null,2]
[83,"A83","بنت",null,null,null,2]
[84,"A84","بنت",null,null,null,2]
[85,"A85","بنت",null,null,null,2]
[86,"A86","بنت",null,null,null,2]
[87,"A87","بنت",null,null,null,2]
[88,"A88","بنت",null,null,null,2]
[89,"A89","بنت",null,null,null,2]
[90,"A90","بنت",null,null,null,2]
[91,"A91","بنت",null,null,null,2]
[92,"A92","بنت",null,null,null,2]
[93,"A93","بنت",null,null,null,2]
[94,"A94","بنت",null,null,null,2]
[95,"A95","بنت",null,null,null,2]
[96,"A96","بنت",null,null,null,2]
[97,"A97","بنت",null,null,null,2]
[98,"A98","بنت",null,null,null,2]
[99,"A99","بنت",null,null,null,2]
[100,"A100","بنت",null,null,null,2]
[null,null,""]
[null,null,""]
[null,null,""]
[null,null,""]
[null,null,""]
[null,null,""]
[null,null,""]
[null,null,""]
[null,null,""]
[null,null,""]
[null,null,""]
[null,null,""]
[null,null,""]
[null,null,""]

{"sheet":"ورقة3","index":1,"n_rows":0,"n_cols":0,"rows_kept":0,"cut":false,"hidden":false,"merged":[]}